bitfinex/quotes_ETHUSD_20241024
["timestamp","ask_amount","ask_price","bid_price","bid_amount"]
[1729760473172,0.01,2517.1,2517.0,0.05279161]
[1729760473580,0.01,2517.1,2516.7,3.97337]
[1729760473792,0.01,2516.8,2516.7,3.97337]
[1729760475381,0.01,2517.0,2516.9,3.97314]
[1729760475574,4.73463,2517.4,2516.3,3.6985571]
[1729760475575,0.01,2517.2,2517.0,3.97284]
[1729760475775,0.01,2517.2,2516.6,3.97357]
[1729760475776,0.01,2517.0,2516.8,3.97321]
[1729760475991,0.01,2517.0,2516.3,3.6985571]
[1729760475992,0.7622,2516.9,2516.3,3.6985571]
[1729760476315,0.01,2516.6,2516.4,3.97383]
[1729760476673,0.01,2516.4,2516.1,3.97427]
[1729760476973,0.01,2516.4,2516.3,3.97408]
[1729760477443,0.01,2516.7,2516.0,7.6730871]
[1729760477619,0.01,2516.7,2516.1,3.9744]
[1729760477919,0.01,2516.7,2516.5,3.97368]
[1729760478116,0.01,2516.7,2516.6,3.97361]
[1729760478410,0.7722,2516.9,2516.6,3.97361]
[1729760478715,0.01,2517.1,2517.0,3.97298]
[1729760483300,0.01,2517.1,2517.0,4.77338]
[1729760483876,0.01,2517.1,2517.0,4.82182788]
[1729760484063,0.01,2517.1,2517.0,5.70132367]
[1729760484377,0.7722,2517.8,2517.5,3.97211]
[1729760484537,0.01,2517.7,2517.5,3.97211]
[1729760484737,0.01,2517.7,2517.6,0.04638173]
[1729760485492,0.01,2518.3,2517.6,0.04638173]
[1729760485493,0.01,2517.9,2517.8,3.97172]
[1729760485981,0.01,2517.9,2517.8,4.01763197]
[1729760486486,0.01,2518.3,2518.0,3.9714]
[1729760486641,0.01,2518.3,2517.8,8.90831288]
[1729760486849,3.98096,2518.3,2517.8,8.90833288]
[1729760487046,0.01,2518.3,2517.8,8.90833288]
[1729760487346,0.01,2518.3,2517.8,4.93669288]
[1729760487545,0.01,2518.3,2517.9,3.97152]
[1729760487787,0.01,2518.3,2517.9,4.01709952]
[1729760488296,0.7722,2518.0,2517.9,0.04557952]
[1729760488582,0.7722,2518.0,2517.6,3.97192]
[1729760488786,0.7722,2518.0,2517.9,0.04526858]
[1729760488943,0.7722,2518.0,2517.6,3.97192]
[1729760489146,0.7722,2518.0,2517.9,0.04526858]
[1729760489371,0.7722,2518.0,2517.5,3.97211]
[1729760489574,0.7722,2518.0,2517.6,3.97198]
[1729760489897,0.7722,2518.0,2517.6,4.01745916]
[1729760490185,4.74361,2518.0,2517.6,0.04547916]
[1729760491247,0.7722,2518.0,2517.6,0.04547916]
[1729760491488,0.01,2518.0,2517.9,3.97156]
[1729760491786,3.6985571,2519.1,2517.9,3.97156]
[1729760491787,0.01,2518.2,2517.9,3.97149]
[1729760491984,0.01,2518.2,2518.1,3.97124]
[1729760492349,0.01,2518.2,2518.1,4.01643527]
[1729760495797,0.7722,2518.2,2518.1,0.04519527]
[1729760495971,4.74329,2518.2,2518.1,0.04519527]
[1729760496175,0.01,2517.7,2517.4,3.97231]
[1729760496567,0.01,2517.7,2517.5,0.04356647]
[1729760497402,0.01,2517.7,2517.3,3.97237]
[1729760497698,0.01,2517.7,2517.4,3.97234]
[1729760497906,0.01,2517.5,2517.4,0.04363668]
[1729760498804,0.01,2517.9,2517.4,0.4531818]
[1729760498985,0.01,2518.1,2517.8,3.97172]
[1729760499162,0.01,2518.1,2517.6,3.97193]
[1729760499364,3.9714,2518.0,2517.9,0.04328568]
[1729760499565,3.97171,2517.9,2517.4,3.97233]
[1729760499806,0.01,2517.6,2517.3,0.8101]
[1729760500028,0.01,2517.6,2517.3,3.9724]
[1729760500692,0.7753,2517.6,2517.2,3.97258]
[1729760501092,0.7753,2517.6,2517.3,3.97244]
[1729760501631,0.7753,2517.6,2517.2,7.94516]
[1729760501935,0.7753,2517.6,2517.2,3.97258]
[1729760502087,0.7753,2517.6,2517.3,3.97243]
[1729760502294,0.7753,2517.6,2517.2,3.97258]
[1729760502991,0.7753,2517.6,2517.2,7.94517]
[1729760503296,0.7753,2517.6,2517.3,3.97248]
[1729760503494,0.01,2517.8,2517.6,3.97192]
[1729760503736,0.01,2517.8,2517.4,3.97222]
[1729760504538,0.01,2517.8,2517.2,3.97266]
[1729760504832,0.7753,2517.9,2517.6,3.97194]
[1729760505040,0.01,2517.7,2517.6,3.97194]
[1729760505333,0.7653,2517.9,2517.7,3.97187]
[1729760505334,0.01,2517.9,2517.7,3.97187]
[1729760505531,0.01,2517.9,2517.6,3.97194]
[1729760506637,0.01,2517.7,2517.4,3.97222]
[1729760506849,0.01,2517.5,2517.3,3.97236]
[1729760508126,0.01,2517.7,2517.4,4.78243]
[1729760508311,0.01,2518.0,2517.6,3.97195]
[1729760508525,0.7753,2518.0,2517.6,3.97195]
[1729760508708,0.01,2517.8,2517.5,3.97215]
[1729760508908,0.01,2517.4,2517.1,4.78288]
[1729760509113,0.01,2517.6,2517.3,3.97239]
[1729760509309,0.01,2517.6,2517.2,0.07944679]
[1729760509510,0.02,2518.4,2516.4,0.01]
[1729760509511,0.01,2517.2,2516.9,3.97305]
[1729760509714,0.01,2517.2,2517.0,3.97296]
[1729760510141,0.01,2517.2,2516.9,3.97305]
[1729760510345,0.01,2517.2,2516.9,3.97303]
[1729760510503,0.01,2517.2,2517.0,3.97295]
[1729760512398,0.01,2517.2,2517.0,7.94586]
[1729760512797,0.01,2517.2,2517.1,3.97282]
[1729760513243,0.01,2517.0,2516.7,3.97336]
[1729760513544,0.01,2517.0,2515.5,0.1252106]
[1729760513545,0.01,2516.6,2516.2,3.97417]
[1729760513745,0.01,2516.6,2516.3,0.16356341]
[1729760514442,0.771,2516.4,2516.3,0.04356341]
[1729760514798,0.01,2516.2,2516.0,3.97445]
[1729760515541,0.01,2516.2,2516.1,3.9744]
[1729760515738,0.771,2516.4,2516.1,3.9744]
[1729760516038,0.771,2516.4,2516.2,3.97422]
[1729760516240,0.771,2516.4,2516.1,3.97432]
[1729760516550,0.771,2516.4,2516.0,3.97445]
[1729760516551,0.01,2516.2,2516.0,3.97445]
[1729760517398,0.01,2516.2,2515.9,3.97469]
[1729760517838,0.01,2516.2,2516.0,3.97445]
[1729760519378,0.01,2516.2,2515.8,4.454996]
[1729760519379,0.01,2516.2,2515.8,3.97485]
[1729760519583,0.01,2516.2,2515.8,3.97479]
[1729760519780,0.01,2516.2,2515.9,3.97464]
[1729760519942,0.01,2516.2,2516.0,3.97452]
[1729760520642,0.01,2516.2,2516.1,3.9744]
[1729760520943,0.01,2516.2,2516.0,0.794916]
[1729760521144,0.01,2516.2,2515.9,3.97461]
[1729760521844,0.01,2516.2,2516.0,3.97446]
[1729760522166,0.01,2516.2,2516.1,3.9744]
[1729760524189,0.01,2516.5,2516.4,3.97393]
[1729760524485,0.01,2516.5,2516.4,0.397393]
[1729760524691,0.01,2516.5,2516.3,3.974]
[1729760525047,0.01,2516.5,2516.4,3.97393]
[1729760525244,0.01,2516.5,2516.3,3.974]
[1729760525445,0.761,2516.7,2361.1,6.96022727]
[1729760525446,0.761,2516.0,2515.5,0.1252106]
[1729760525752,3.98519,2515.6,2515.5,0.1252106]
[1729760526175,0.01,2515.6,2515.5,0.1252106]
[1729760526422,3.98519,2515.6,2515.5,0.1252106]
[1729760526579,4.75619,2515.6,2515.5,0.1252106]
[1729760527415,4.74619,2515.6,2515.5,0.1252106]
[1729760527712,4.75619,2515.6,2515.5,0.1252106]
[1729760528077,7.75619,2515.6,2515.5,6e-07]
[1729760528278,8.66568119,2515.6,2515.5,6e-07]
[1729760528474,8.66568119,2515.6,2513.5,0.005]
[1729760528475,0.01,2513.6,2513.5,0.005]
[1729760528718,6.98835,2513.6,2513.5,0.005]
[1729760528912,8.74800167,2513.6,2513.5,0.005]
[1729760529286,12.44655877,2513.6,2513.5,0.005]
[1729760529489,11.4550071,2513.6,2513.5,1e-05]
[1729760529694,7.74645,2513.6,2513.5,1e-05]
[1729760529881,4.74645,2513.6,2513.5,1e-05]
[1729760530318,11.4550071,2513.6,2513.5,1e-05]
[1729760530774,0.01,2513.0,2511.9,3.98097]
[1729760531026,11.2578571,2513.0,2512.9,6e-07]
[1729760531180,7.0093,2513.0,2512.9,6e-07]
[1729760531620,6.9993,2513.0,2512.9,6e-07]
[1729760531991,4.7674,2513.0,2512.9,6e-07]
[1729760532229,11.4659571,2513.0,2512.9,6e-07]
[1729760532391,7.7674,2513.0,2512.9,6e-07]
[1729760532587,7.7574,2513.0,2512.9,6e-07]
[1729760532803,7.7674,2513.0,2512.9,6e-07]
[1729760532987,4.7574,2513.0,2512.9,6e-07]
[1729760533188,4.7674,2513.0,2512.9,6e-07]
[1729760533488,8.4659571,2513.0,2512.9,6e-07]
[1729760533694,11.4759571,2513.0,2512.9,6e-07]
[1729760533886,11.4709571,2513.0,2512.9,6e-07]
[1729760534093,12.0209571,2513.0,2512.9,6e-07]
[1729760534316,12.0209571,2513.0,2511.6,1.51226056]
[1729760534317,0.005,2511.7,2511.6,1.51226056]
[1729760534826,0.005,2511.7,2511.6,5.53782244]
[1729760535125,0.005,2511.9,2511.6,2.25824068]
[1729760536386,0.005,2512.1,2511.8,3.98115]
[1729760536576,0.005,2512.1,2511.9,0.04823394]
[1729760537620,0.005,2512.3,2512.0,3.98089]
[1729760537780,0.005,2512.3,2512.2,3.98057]
[1729760537986,0.005,2512.3,2512.2,4.0285924]
[1729760538207,0.005,2512.3,2512.2,0.0480224]
[1729760538515,0.7731,2512.3,2512.2,0.0480224]
[1729760538882,0.005,2512.0,2511.7,3.98131]
[1729760539225,0.005,2512.0,2511.6,1.26226056]
[1729760539393,0.005,2511.8,2511.6,1.26226056]
[1729760539596,0.005,2511.8,2511.7,3.98136]
[1729760539925,0.005,2512.0,2511.9,3.98105]
[1729760540417,0.005,2512.4,2512.3,3.98041]
[1729760540780,0.005,2512.4,2512.2,3.98056]
[1729760541816,0.005,2512.4,2512.2,3.98046]
[1729760542135,0.005,2512.4,2512.2,7.96094]
[1729760542286,0.005,2512.4,2512.2,3.98046]
[1729760542482,0.005,2512.4,2512.1,3.98069]
[1729760542683,0.005,2512.4,2512.2,3.98057]
[1729760542911,0.005,2512.4,2512.2,3.98048]
[1729760543222,0.005,2512.4,2512.2,3.98045]
[1729760543578,0.01,2513.0,2511.4,3.98174]
[1729760543579,0.005,2511.7,2511.4,3.98174]
[1729760543795,0.005,2511.7,2511.6,1.30858755]
[1729760544306,4.75446,2511.7,2511.6,1.30858755]
[1729760544634,4.75446,2511.7,2511.6,5.24378056]
[1729760544635,0.005,2511.7,2511.6,5.24378056]
[1729760544833,4.75446,2511.7,2511.6,1.26226056]
[1729760544980,4.75446,2511.7,2511.6,1.30875226]
[1729760545409,4.75446,2511.7,2511.6,1.26226056]
[1729760546716,7.75446,2511.7,2511.6,1.26226056]
[1729760547023,7.76446,2511.7,2511.6,1.26226056]
[1729760547386,7.75446,2511.7,2511.6,1.26226056]
[1729760547791,7.76446,2511.7,2511.6,1.26226056]
[1729760548236,7.76446,2511.7,2511.6,5.6e-07]
[1729760548925,0.005,2510.5,2510.4,0.1252106]
[1729760549350,0.005,2510.5,2510.4,0.17341602]
[1729760549828,0.005,2510.7,2510.4,0.17341602]
[1729760550036,0.005,2510.7,2510.5,3.98325]
[1729760550259,0.005,2510.9,2510.6,3.98302]
[1729760550551,0.005,2510.9,2510.7,0.04799362]
[1729760550706,0.005,2510.9,2510.7,8.01379362]
[1729760550910,0.005,2510.9,2510.7,0.04799362]
[1729760551106,0.005,2510.9,2510.5,3.98311]
[1729760551347,0.005,2510.6,2510.4,0.1252106]
[1729760551656,0.005,2510.6,2510.4,4.1086306]
[1729760551837,0.005,2510.9,2510.6,3.98301]
[1729760552007,0.005,2511.1,2510.8,3.98279]
[1729760552408,0.7681,2511.4,2511.3,3.982]
[1729760552409,0.005,2511.4,2511.3,3.982]
[1729760552708,0.005,2512.1,2512.0,3.98089]
[1729760552912,0.005,2511.9,2511.3,0.82]
[1729760555755,0.005,2511.9,2511.5,3.98158]
[1729760556532,0.005,2511.9,2511.6,3.98151]
[1729760556682,0.005,2511.9,2511.5,3.98158]
[1729760556989,0.005,2511.9,2511.3,4.80185]
[1729760557185,0.005,2511.9,2511.6,3.98149]
[1729760557484,0.005,2512.1,2511.8,3.9812]
[1729760557699,0.005,2512.1,2511.9,3.98092]
[1729760557841,0.005,2512.1,2511.8,3.9812]
[1729760557842,0.005,2512.1,2512.0,3.98089]
[1729760558178,0.005,2512.3,2512.0,3.98079]
[1729760558783,0.005,2512.3,2512.0,7.96159]
[1729760559097,0.005,2512.5,2512.1,4.02759519]
[1729760559240,0.005,2512.5,2512.2,3.98048]
[1729760559441,0.005,2512.5,2512.3,0.04654721]
[1729760559638,0.005,2512.3,2512.0,0.15]
[1729760559867,0.005,2512.3,2512.1,0.04668822]
[1729760560276,4.74867,2512.2,2512.1,0.04668822]
[1729760560475,0.7681,2512.2,2512.1,0.04668822]
[1729760560691,0.005,2512.1,2512.0,0.15]
[1729760561100,0.005,2512.1,2512.0,0.19667942]
[1729760561751,0.7731,2512.1,2512.0,0.19667942]
[1729760562385,0.005,2512.1,2512.0,0.19667942]
[1729760563283,0.005,2512.1,2510.4,0.1252106]
[1729760563284,0.005,2510.6,2510.4,0.1252106]
[1729760563442,0.01,2511.3,2510.4,0.20488002]
[1729760563443,0.005,2511.0,2510.4,0.20488002]
[1729760563777,0.005,2511.0,2510.6,3.9831]
[1729760564168,0.005,2511.0,2510.4,4.1086106]
[1729760564169,0.005,2510.7,2510.4,0.1252106]
[1729760564842,0.005,2510.5,2510.4,0.1252106]
[1729760565529,3.98827,2510.5,2510.4,0.1252106]
[1729760565737,0.005,2510.5,2510.4,0.1252106]
[1729760566673,0.005,2510.5,2510.4,6e-07]
[1729760566674,7.76637,2510.5,2510.4,6e-07]
[1729760567950,8.31637,2510.5,2510.4,6e-07]
[1729760568302,7.76637,2510.5,2510.4,6e-07]
[1729760568590,4.75637,2510.5,2510.4,6e-07]
[1729760568947,3.98321,2510.6,2510.0,1e-05]
[1729760568948,6.9989,2510.1,2510.0,1e-05]
[1729760569989,7.767,2510.1,2510.0,1e-05]
[1729760570349,7.767,2510.1,2508.3,0.01]
[1729760570350,0.005,2508.8,2508.0,0.015]
[1729760570548,0.005,2508.3,2508.1,4.03279703]
[1729760570779,0.005,2508.5,2508.1,4.03279703]
[1729760570964,0.005,2508.3,2508.1,0.04574703]
[1729760571173,0.005,2508.3,2507.9,4.77587]
[1729760571386,0.005,2508.3,2508.0,0.48510122]
[1729760571561,0.005,2508.3,2508.1,3.98705]
[1729760571771,0.005,2508.5,2508.2,0.04485169]
[1729760572080,0.005,2508.8,2508.6,7.97246]
[1729760572274,0.005,2508.8,2508.6,3.98619]
[1729760572478,0.005,2508.8,2508.7,0.0444981]
[1729760573199,0.005,2509.2,2508.9,3.9858]
[1729760573361,0.005,2509.6,2509.2,3.98522]
[1729760573691,0.005,2509.6,2509.3,0.04407399]
[1729760573989,0.005,2509.6,2508.9,0.7886]
[1729760573990,0.005,2509.4,2509.0,3.98557]
[1729760574146,0.005,2509.6,2509.1,4.03141184]
[1729760574352,0.005,2509.6,2509.2,3.98523]
[1729760574573,0.005,2509.6,2509.3,0.04588049]
[1729760574761,0.005,2509.4,2509.0,3.98551]
[1729760575090,0.005,2509.6,2509.3,3.98503]
[1729760575315,0.005,2509.4,2509.1,0.04602184]
[1729760575513,0.005,2509.4,2509.0,3.98555]
[1729760576119,0.005,2509.4,2508.9,0.7886]
[1729760576319,0.005,2509.4,2508.5,0.005]
[1729760576320,0.005,2509.0,2508.5,4.81352]
[1729760576483,0.005,2509.0,2508.5,5.294872]
[1729760576678,0.005,2509.0,2508.6,3.98626]
[1729760577023,0.005,2509.2,2508.9,3.9857]
[1729760577231,0.005,2509.2,2508.9,3.98569]
[1729760577779,0.005,2509.2,2508.7,3.98602]
[1729760577992,0.005,2509.2,2508.9,3.98576]
[1729760578286,0.005,2509.9,2509.0,0.91191608]
[1729760578483,0.005,2509.9,2509.4,3.98488]
[1729760578818,0.005,2509.9,2509.6,3.98459]
[1729760579051,0.005,2509.9,2509.6,3.98468]
[1729760579219,0.005,2509.9,2509.7,3.9845]
[1729760579535,0.005,2510.1,2510.0,3.98406]
[1729760579686,0.005,2510.1,2509.9,3.9841]
[1729760579879,0.005,2510.1,2509.8,0.8272]
[1729760580106,0.005,2509.9,2509.3,0.8272]
[1729760580284,0.005,2509.9,2509.6,3.98457]
[1729760580490,0.005,2510.1,2509.4,3.98501]
[1729760580696,0.005,2510.1,2509.3,4.81224]
[1729760580697,0.005,2510.1,2509.9,3.98409]
[1729760580908,0.005,2510.1,2510.0,3.98406]
[1729760581106,0.005,2510.1,2509.9,3.98409]
[1729760581684,0.005,2510.1,2510.0,3.98406]
[1729760581884,0.005,2510.1,2509.9,3.98409]
[1729760582405,0.005,2510.1,2509.9,3.98417]
[1729760582825,0.005,2510.1,2509.8,3.9843]
[1729760583134,0.005,2510.1,2509.4,3.9849]
[1729760583135,0.005,2509.7,2509.4,3.9849]
[1729760583344,3.98393,2510.1,2509.3,0.8272]
[1729760583345,0.005,2510.1,2509.7,3.98444]
[1729760583511,0.005,2510.1,2509.5,3.98477]
[1729760583512,0.005,2510.3,2509.3,0.8322]
[1729760583715,0.005,2510.5,2510.2,3.98374]
[1729760583915,0.005,2510.5,2510.2,3.9837]
[1729760584118,0.005,2510.5,2510.3,3.98357]
[1729760584299,0.005,2510.5,2509.9,0.8272]
[1729760584300,0.005,2510.5,2510.2,3.98366]
[1729760584499,0.005,2510.5,2510.0,3.98406]
[1729760584500,0.005,2510.5,2510.0,3.98394]
[1729760584844,0.005,2510.1,2509.4,0.8272]
[1729760585044,0.005,2510.1,2509.7,3.98445]
[1729760585537,0.005,2510.3,2510.0,3.98397]
[1729760585836,0.005,2510.3,2509.7,0.79692]
[1729760585837,0.005,2510.5,2510.2,3.98373]
[1729760586036,0.005,2510.5,2510.2,7.96746]
[1729760586341,0.005,2510.7,2510.4,3.98332]
[1729760586641,0.005,2510.7,2510.5,3.98315]
[1729760586847,0.005,2510.7,2510.4,3.98342]
[1729760587141,0.005,2510.7,2510.3,3.98347]
[1729760587346,0.005,2510.9,2510.6,3.98311]
[1729760587799,0.7731,2511.1,2510.6,3.98302]
[1729760588009,0.005,2511.1,2510.7,3.98295]
[1729760588201,0.005,2511.1,2510.8,3.98276]
[1729760588402,0.005,2511.3,2511.0,3.98238]
[1729760588719,0.005,2511.5,2511.3,3.98199]
[1729760589233,0.005,2511.7,2511.5,3.98166]
[1729760589435,4.73998,2512.1,2511.6,0.04149465]
[1729760589436,0.005,2511.9,2511.6,0.04149465]
[1729760589609,0.005,2512.1,2511.7,3.98136]
[1729760589804,0.005,2512.1,2511.8,0.04107908]
[1729760590127,0.005,2512.3,2511.9,3.98101]
[1729760590452,0.005,2512.3,2511.9,0.04097806]
[1729760590740,0.005,2512.3,2512.0,3.98089]
[1729760590944,0.005,2512.3,2512.0,3.98079]
[1729760591172,0.005,2512.3,2512.1,4.02117216]
[1729760591443,0.005,2512.5,2512.1,4.02117216]
[1729760592017,0.7641,2512.8,2512.4,3.98025]
[1729760592340,0.7641,2512.8,2511.6,8.80803931]
[1729760592341,3.98466,2512.8,2512.5,0.04025016]
[1729760592697,3.98466,2512.8,2512.2,3.98048]
[1729760592698,0.005,2512.8,2512.2,3.98048]
[1729760592899,0.005,2512.8,2512.6,0.03972259]
[1729760593124,0.005,2513.0,2512.6,3.97991]
[1729760593311,0.005,2513.0,2512.8,3.97961]
[1729760593523,0.005,2513.0,2512.7,4.01939993]
[1729760593524,0.005,2513.2,2512.9,3.97932]
[1729760593747,0.005,2513.2,2513.0,3.97922]
[1729760594097,0.005,2513.4,2513.1,4.01678605]
[1729760594243,0.02,2514.2,2513.2,3.97888]
[1729760594244,0.005,2513.6,2513.2,3.97888]
[1729760594410,0.005,2513.6,2513.3,0.03757688]
[1729760594606,0.7641,2513.8,2513.4,3.97854]
[1729760594856,0.005,2513.8,2513.5,0.03716192]
[1729760595023,4.74245,2513.6,2513.5,0.03716192]
[1729760595355,4.74245,2513.6,2512.8,4.74297]
[1729760595356,4.74245,2513.6,2513.0,3.97927]
[1729760595519,0.005,2513.4,2513.0,3.97926]
[1729760595707,0.005,2513.6,2513.1,3.97904]
[1729760596033,0.005,2513.6,2513.3,7.95742]
[1729760596340,4.73707,2513.9,2513.3,7.95742]
[1729760596341,0.005,2513.8,2513.3,7.95743]
[1729760596657,0.005,2513.8,2513.4,3.97861]
[1729760596939,0.7591,2514.2,2512.8,0.7685]
[1729760596940,0.005,2514.0,2513.6,3.97822]
[1729760597128,0.005,2514.0,2513.6,4.74172]
[1729760597327,0.005,2514.0,2513.7,3.9781]
[1729760597500,0.005,2514.0,2513.6,4.74172]
[1729760597706,3.98315,2513.8,2513.2,0.7635]
[1729760597920,3.98315,2513.8,2512.8,0.01]
[1729760597921,0.005,2513.4,2512.8,4.74303]
[1729760598253,0.7591,2513.8,2512.5,0.7635]
[1729760598254,0.7641,2513.1,2512.5,0.7635]
[1729760598561,4.74336,2513.1,2512.5,4.74356]
[1729760599062,4.74336,2513.1,2512.4,3.98012]
[1729760599063,0.005,2512.8,2512.4,3.98012]
[1729760599266,0.005,2512.8,2512.5,3.98009]
[1729760600248,0.005,2512.8,2512.4,7.96025]
[1729760600461,0.005,2512.8,2512.4,3.98012]
[1729760600662,0.005,2512.5,2512.1,3.98071]
[1729760600843,0.7591,2513.1,2512.2,3.98043]
[1729760600844,0.005,2512.7,2512.2,3.98043]
[1729760601280,0.005,2512.7,2512.4,3.98013]
[1729760601476,0.005,2512.9,2512.6,3.97994]
[1729760601677,0.005,2512.9,2512.4,7.96033]
[1729760601981,0.005,2512.9,2512.4,3.98017]
[1729760602342,0.005,2512.9,2512.6,3.97991]
[1729760602543,0.005,2512.9,2512.7,3.97964]
[1729760602739,0.005,2513.1,2512.8,3.97953]
[1729760603362,4.73791,2513.4,2512.8,3.97953]
[1729760603363,0.005,2513.3,2512.8,3.97953]
[1729760603543,4.73788,2513.4,2512.6,3.97986]
[1729760603544,0.005,2513.0,2512.6,3.97986]
[1729760603863,0.005,2513.0,2512.7,0.03994409]
[1729760604175,0.005,2513.0,2512.7,4.01970409]
[1729760604979,0.005,2513.0,2512.7,0.03994409]
[1729760605147,0.005,2513.3,2512.7,0.03994409]
[1729760605472,0.005,2513.3,2513.0,7.95838]
[1729760605672,0.005,2513.3,2513.0,3.97917]
[1729760605877,0.005,2513.3,2513.2,3.97899]
[1729760606279,4.7374,2513.7,2513.2,3.97899]
[1729760606280,0.005,2513.5,2513.2,4.01827592]
[1729760606437,0.7641,2513.7,2513.5,3.9785]
[1729760606638,0.7641,2513.7,2513.6,0.03886664]
[1729760606874,0.7641,2513.7,2513.3,7.95757]
[1729760607060,0.7641,2513.7,2513.6,0.03886664]
[1729760607244,0.005,2513.7,2513.6,3.97835]
[1729760607447,0.7641,2514.0,2513.7,3.97804]
[1729760607874,0.7641,2514.0,2513.8,0.04147617]
[1729760608248,0.7641,2514.0,2513.6,3.97832]
[1729760608575,0.7641,2514.0,2513.7,4.0197404]
[1729760608785,0.7641,2514.0,2513.7,7.9979304]
[1729760608942,0.7641,2514.0,2513.7,4.0197404]
[1729760609144,0.005,2514.0,2513.7,4.0196404]
[1729760609655,0.005,2514.0,2513.9,3.97788]
[1729760609988,0.005,2514.0,2513.9,0.04467717]
[1729760610485,0.005,2514.0,2512.4,3.98016]
[1729760610486,0.7591,2513.7,2512.9,0.7635]
[1729760610644,0.005,2513.3,2512.7,3.97978]
[1729760610976,0.005,2513.5,2513.1,3.97905]
[1729760611386,0.005,2513.5,2513.2,4.74247]
[1729760611554,0.005,2513.5,2513.1,3.97905]
[1729760611753,0.005,2513.5,2513.2,3.97897]
[1729760611954,0.005,2513.5,2513.1,3.97905]
[1729760612148,0.005,2513.5,2513.1,7.9581]
[1729760612345,0.005,2513.5,2513.1,3.97905]
[1729760612545,3.98353,2513.5,2513.1,3.97905]
[1729760612878,3.98353,2513.5,2513.0,3.97926]
[1729760613402,0.005,2513.5,2513.1,3.97914]
[1729760613610,3.97907,2513.2,2512.7,3.97968]
[1729760613812,0.005,2513.1,2512.4,0.01]
[1729760614020,0.005,2513.1,2512.9,3.97935]
[1729760614315,0.005,2513.5,2513.1,3.97903]
[1729760614773,0.7641,2513.7,2513.4,3.97857]
[1729760614968,0.005,2513.7,2512.8,0.474328]
[1729760615165,3.9832,2513.7,2513.2,3.97889]
[1729760615370,3.9832,2513.7,2513.2,7.95778]
[1729760615897,3.9832,2513.7,2513.2,3.97889]
[1729760616629,0.005,2513.7,2513.2,3.97885]
[1729760616907,0.005,2513.7,2513.3,3.9787]
[1729760617592,0.005,2513.7,2513.3,3.97883]
[1729760617794,7.95595,2513.9,2512.7,4.83661931]
[1729760617795,3.98297,2513.9,2512.7,4.83661931]
[1729760618001,0.005,2513.9,2513.6,3.97826]
[1729760620613,4.74982,2514.7,2514.2,3.97725]
[1729760620911,4.74982,2514.7,2513.9,0.8037]
[1729760620912,3.98216,2514.4,2514.3,0.04392954]
[1729760621281,3.98216,2514.4,2513.9,4.78154]
[1729760621478,3.98216,2514.4,2514.3,0.04392193]
[1729760621811,0.005,2514.4,2513.6,0.8037]
[1729760622022,0.005,2514.4,2514.0,3.97763]
[1729760622371,0.005,2514.4,2513.8,3.97804]
[1729760622372,0.005,2514.6,2514.1,0.04391541]
[1729760622596,0.005,2514.6,2514.2,3.9774]
[1729760622770,0.7681,2514.7,2514.4,3.97708]
[1729760622972,0.7681,2514.7,2514.5,0.04356347]
[1729760623178,0.005,2514.8,2514.5,4.02034347]
[1729760623989,0.005,2514.8,2514.5,0.04356347]
[1729760624581,0.005,2514.8,2514.5,3.97684]
[1729760624778,4.74924,2515.0,2514.5,3.97684]
[1729760625112,3.98082,2515.2,2514.6,3.97661]
[1729760625292,3.98082,2515.2,2514.6,3.97663]
[1729760625495,0.005,2515.2,2514.7,3.97659]
[1729760625700,0.005,2515.2,2514.8,3.97643]
[1729760626129,3.98083,2515.2,2514.7,3.97659]
[1729760626909,3.98083,2515.2,2514.7,3.97652]
[1729760627328,3.98083,2515.2,2514.6,0.8037]
[1729760627329,3.97602,2515.1,2514.6,0.8037]
[1729760627889,3.97602,2515.1,2514.6,4.78039]
[1729760628092,0.005,2515.2,2514.8,3.97645]
[1729760628394,3.98082,2515.2,2514.6,1.34166615]
[1729760628613,0.005,2514.7,2514.1,4.78118]
[1729760628812,3.97694,2514.5,2514.1,4.78118]
[1729760629018,3.97685,2514.6,2514.1,4.78118]
[1729760629019,7.95376,2514.6,2514.1,4.78118]
[1729760629227,7.95376,2514.6,2514.1,8.75866]
[1729760629228,3.97685,2514.6,2514.1,8.75866]
[1729760629404,3.97685,2514.6,2514.1,4.78118]
[1729760630522,3.98164,2514.7,2514.2,3.97737]
[1729760631096,0.005,2514.7,2514.3,3.97713]
[1729760631302,0.005,2514.7,2514.3,4.852958]
[1729760631537,0.005,2514.7,2514.3,8.830128]
[1729760631739,0.005,2514.9,2514.4,3.977]
[1729760631905,0.005,2515.1,2514.6,4.78045]
[1729760632101,0.005,2515.1,2514.7,3.97654]
[1729760632302,3.98107,2515.1,2514.6,4.78047]
[1729760632620,3.98107,2515.1,2514.6,4.78038]
[1729760633014,0.005,2515.1,2514.8,3.97643]
[1729760633512,0.005,2515.1,2514.7,3.97659]